Department Family,Entity,Pay date,Expense Type(T),Expense Area(T),Supplier(T),Transaction Number,Amount,Description
NS&I,NS&I,13/09/2023,Unitary fee - Outsource partner,Commercial and Legal,Atos IT Services UK Ltd,4024319,"5,671,960.45",Unitary service charge - September 2023
NS&I,NS&I,20/09/2023,Demand-linked costs - Outsource partner,Delivery & Monitoring,Atos IT Services UK Ltd,4024309,"3,394,526.00",Demand link service charge - August 2023
NS&I,NS&I,13/09/2023,Unitary fee - Outsource partner,B2B Government Payment Services,Atos IT Services UK Ltd,4024289,"1,464,751.45",Tax-free childcare service charges - September 2023
NS&I,NS&I,20/09/2023,Unitary fee - Outsource partner,B2B Government Payment Services,Atos IT Services UK Ltd,4024288,"721,638.14",Help to save service charges - September 2023
NS&I,NS&I,13/09/2023,Unitary fee - Outsource partner,B2B Government Payment Services,Atos IT Services UK Ltd,4024255,"465,416.26",Tax-free childcare service charges - July 2023
NS&I,NS&I,13/09/2023,Unitary fee - Outsource partner,B2B Government Payment Services,Atos IT Services UK Ltd,4024351,"454,698.48",Help to save service charges - June 2023
NS&I,NS&I,27/09/2023,Professional services - Other,Rainbow,IBM United Kingdom Ltd,4024406,"435,434.78",IT service charges August 2023
NS&I,NS&I,27/09/2023,Unitary fee - Outsource partner,B2B Government Payment Services,Atos IT Services UK Ltd,4024403,"395,125.61",Help to save service charges - September 2023
NS&I,NS&I,27/09/2023,Professional services - Other,Rainbow,Actica Consulting Ltd,4024417,"318,919.50",Strategic Business Design support
NS&I,NS&I,29/09/2023,Unitary fee - Outsource partner,B2B Government Payment Services,Atos IT Services UK Ltd,4024291,"380,522.80",Help to buy service charges September 2023
NS&I,NS&I,13/09/2023,Unitary fee - Outsource partner,B2B Government Payment Services,Atos IT Services UK Ltd,4024290,"301,889.86",30 Hours service charges - September 2023
NS&I,NS&I,13/09/2023,Professional services - Other,Information & Technology,Gartner Uk Ltd,4024325,"208,680.00",IT analyst and advisory service
NS&I,NS&I,20/09/2023,Professional services - Other,Change Delivery,Bloom Procurement Services Limited,4024371,"192,000.00",Cost of Marketing Campaigns
NS&I,NS&I,13/09/2023,Professional services - Legal,Rainbow,Bevan Brittan LLP,4024296,"181,348.14",Legal Services August 2023
NS&I,NS&I,06/09/2023,Professional services - Legal,Rainbow,Bevan Brittan LLP,4024211,"180,000.00",Legal Services July 2023
NS&I,NS&I,20/09/2023,Professional services - Other,Rainbow,Capgemini UK plc (SIAM Partner),4024383,"173,345.76",Service Integration and Management  Partner support 
NS&I,NS&I,13/09/2023,Professional services - Other,Information & Technology,Capgemini Financial Services UK Ltd (IT Partner),4024353,"137,457.12",IT delivery partner support
NS&I,NS&I,13/09/2023,Unitary fee - Outsource partner,B2B Government Payment Services,Atos IT Services UK Ltd,4024233,"131,121.51",Court Funds Office Service Charges August 2023
NS&I,NS&I,06/09/2023,Maintenance and running costs - Outsource partner,Change Delivery,Atos IT Services UK Ltd,4024269,"100,000.00",Programme management cost August 2023
NS&I,NS&I,13/09/2023,Maintenance and running costs - Outsource partner,Rainbow,Atos IT Services UK Ltd,4024292,"99,911.00",Test environment maintenance costs
NS&I,NS&I,06/09/2023,Maintenance and running costs - Outsource partner,Business Insight,Atos IT Services UK Ltd,4024273,"99,675.00",Data warehouse development work
NS&I,NS&I,27/09/2023,Advertising and production,Marketing Communications,Manning Gottlieb OMD,4024415,"98,895.84",Cost of marketing campaigns
NS&I,NS&I,13/09/2023,Project costs - Outsource partner,Programme Delivery,Atos IT Services UK Ltd,4024225,"82,571.00",Service change costs
NS&I,NS&I,13/09/2023,Business intelligence and analysis,Business Insight,CACI Ltd,4024372,"79,200.00",Annual Subscription for Market Data 2023/2024
NS&I,NS&I,13/09/2023,Unitary fee - Outsource partner,B2B Government Payment Services,Atos IT Services UK Ltd,4024301,"78,075.11",Tax-free childcare service charges - July 2023
NS&I,NS&I,13/09/2023,Unitary fee - Outsource partner,B2B Government Payment Services,Atos IT Services UK Ltd,4024256,"77,947.43",Tax-free childcare service charges - July 2023
NS&I,NS&I,13/09/2023,Unitary fee - Outsource partner,B2B Government Payment Services,Atos IT Services UK Ltd,4024257,"77,947.43",30 Hours service charges - July 2023
NS&I,NS&I,20/09/2023,Product account bank charges,Finance,HMRC (Government Banking Service),4024375,"75,000.00",HMRC GBS Management Fees
NS&I,NS&I,06/09/2023,Project costs - Outsource partner,Programme Delivery,Atos IT Services UK Ltd,4024264,"72,219.00",Service change costs
NS&I,NS&I,06/09/2023,Professional services - Projects,Programme Delivery,Agilisys Limited,4024241,"60,000.00",Corporate system improvements
NS&I,NS&I,13/09/2023,Unitary fee - Outsource partner,B2B Government Payment Services,Atos IT Services UK Ltd,4024258,"56,586.49",Tax-free childcare service charges - July 2023
NS&I,NS&I,06/09/2023,Advertising agency costs,Marketing Communications,Unlimited Group United Ltd,4024238,"47,212.61",Cost of marketing campaigns
NS&I,NS&I,13/09/2023,Project costs - Outsource partner,Programme Delivery,Atos IT Services UK Ltd,4024224,"43,892.00",Product enhancement
NS&I,NS&I,29/09/2023,Project costs - Outsource partner,Programme Delivery,Atos IT Services UK Ltd,4024331,"43,803.00",Corporate system improvements
NS&I,NS&I,06/09/2023,Professional services - Other,Rainbow,Bloom Procurement Services Limited,4024246,"43,560.00",Enhancing delivery channels
NS&I,NS&I,13/09/2023,Unitary fee - Outsource partner,B2B Government Payment Services,Atos IT Services UK Ltd,4024235,"42,615.09",Tax-free childcare service charges - September 2023
NS&I,NS&I,06/09/2023,Advertising and production,Marketing Communications,Manning Gottlieb OMD,4024210,"38,349.07",Cost of marketing campaigns
NS&I,NS&I,06/09/2023,Maintenance and running costs - Outsource partner,Information & Technology,Atos IT Services UK Ltd,4024271,"29,312.00",FA portal website service costs
NS&I,NS&I,29/09/2023,Demand-linked costs - Outsource partner,Delivery & Monitoring,Atos IT Services UK Ltd,4024340,"29,013.00",Demand link service charge - August 2023
NS&I,NS&I,13/09/2023,Professional services - Other,Complaint's Management,Financial Ombudsman Services,4024297,"27,000.00",Case Fee Charges September 2023
NS&I,NS&I,20/09/2023,Unitary fee - Outsource partner,B2B Government Payment Services,Atos IT Services UK Ltd,4024293,"26,878.28",Help to save service charges - July 2023
NS&I,NS&I,20/09/2023,Advertising and production,Intermediary Relationships,Manning Gottlieb OMD,4024401,"25,193.99",Marketing to Intermediaries�
